Cogmind - Beta 12 @@@ ROGUE MODE // 2024.01.01 @ 13:53:45 Player: hanzu Result: Destroyed self with Grenade Launcher Performance ------------- Evolutions (0) 0 Regions Visited (4) 800 Robots Destroyed (36) 180 Value Destroyed (952) 952 Prototype IDs (5) 100 Alien Tech Used (0) 0 Bonus (-52) -52 TOTAL SCORE: 1980 Bonus ------- Friendly Fire -52 Cogmind --------- Core Integrity 0/250 Matter 227/300 Energy 160/160 System Corruption 0% Temperature Cool (0) Movement Treading (240) Ox1 Location -9/Mines Parts ------- > --- POWER (1) -------- Light Nuclear Core > --- PROPULSION (2) --- Light Treads Light Treads > --- UTILITY (2) ------ High-capacity Storage Unit Seismic Detector > --- WEAPON (2) ------- Grenade Launcher Grenade Launcher > --- INVENTORY (20) --- Ion Engine Nuclear Core Reinforced Deuterium Engine Fission Core Light Treads Light Treads Light Treads Light Treads Heat Sink Improved Heat Sink High-capacity Matter Pod (200) Sensor Array Improved Terrain Scanner EM Pulse Gun Small Laser Small Laser Particle Gun Light Cannon Rocket Launcher Peak State ------------ > --- POWER ------------ Light Nuclear Core > --- PROPULSION ------- Light Treads Light Treads > --- UTILITY ---------- High-capacity Storage Unit Seismic Detector > --- WEAPON ----------- Particle Gun Light Cannon > --- INVENTORY -------- Ion Engine Nuclear Core Reinforced Deuterium Engine Fission Core Light Treads Light Treads Light Treads Light Treads Heat Sink Improved Heat Sink High-capacity Matter Pod Sensor Array Improved Terrain Scanner EM Pulse Gun Small Laser Small Laser Grenade Launcher Grenade Launcher Rocket Launcher [Rating: 13] Favorites ----------- Power Ion Engine Engine Ion Engine Power Core Light Nuclear Core Propulsion Light Treads Treads Light Treads Utility High-capacity Storage Unit Device Seismic Detector Storage High-capacity Storage Unit Processor Visual Processing Unit Weapon Assault Rifle Energy Gun EM Pulse Gun Ballistic Gun Assault Rifle Ballistic Cannon Light Cannon Launcher Grenade Launcher Build | -11 -10 -10 -10 -9 ------- Run | Jun Mat Min Exi Min Slots Evolved . | . . . . . Power . | . . . . . Propulsion . | . . . . . Utility . | . . . . . Weapon . | . . . . . Parts Attached 34 | 7 11 4 1 11 Power 3 | 1 1 . 1 . Engine 2 | 1 1 . . . Core 1 | . . . 1 . Reactor . | . . . . . Propulsion 4 | 2 . 1 . 1 Treads 4 | 2 . 1 . 1 Leg . | . . . . . Wheel . | . . . . . Hover . | . . . . . Flight . | . . . . . Utility 12 | 2 7 3 . . Device 9 | 1 5 3 . . Storage 2 | 1 1 . . . Processor 1 | . 1 . . . Hackware . | . . . . . Protection . | . . . . . Artifact . | . . . . . Weapon 15 | 2 3 . . 10 Energy Gun 2 | 1 . . . 1 Energy Cannon . | . . . . . Ballistic Gun 5 | 1 2 . . 2 Ballistic Cannon 3 | . 1 . . 2 Launcher 5 | . . . . 5 Special Weapon . | . . . . . Impact Weapon . | . . . . . Slashing Weapon . | . . . . . Piercing Weapon . | . . . . . Special Melee Weapon . | . . . . . Unidentified Prototypes . | . . . . . Parts Lost 7 | . 5 1 . 1 Power 1 | . 1 . . . Propulsion 1 | . . 1 . . Utility 2 | . 2 . . . Weapon 3 | . 2 . . 1 Highest Loss Streak 3 | . 3 1 . 1 To Critical Strikes . | . . . . . Average Slot Usage (%) 99 | . 99 99 100 99 Engine 11 | . 13 14 11 . Core 2 | . . . 2 14 Treads 27 | . 28 27 28 28 Device 10 | . 6 14 14 14 Storage 14 | . 14 14 14 14 Processor 2 | . 7 . . . Energy Gun 1 | . 2 . . 6 Ballistic Gun 15 | . 19 14 14 7 Ballistic Cannon 10 | . 5 14 14 13 Naked Turns . | . . . . . Heaviest Build 52 | 13 50 51 51 52 Greatest Support 40 | 40 40 40 40 40 Greatest Overweight (x) 1 | . 1 1 1 1 Average Overweight (x) . | . . 1 1 1 Largest Inventory Capacity 20 | 8 20 20 20 20 Average Capacity 18 | 7 17 20 20 20 Most Carried 20 | 5 18 20 20 20 Average Carried 16 | 2 11 19 19 19 Final Capacity 20 | 8 20 20 20 20 Final Carried 20 | 3 18 20 20 19 Class Distribution -------------------- 100% | Mutant Dominant Class ---------------- Mutant | -10/Materials Mutant | -10/Mines Mutant | -10/Exiles Mutant | -9/Mines Resources | -11 -10 -10 -10 -9 ----------- Run | Jun Mat Min Exi Min Matter Collected 983 | 190 384 172 45 192 Remotely . | . . . . . Salvage Created 1077 | 154 600 112 . 211 Parts 77 | 17 36 10 . 14 Haulers Intercepted 1 | . 1 . . . Recyclers Shooed . | . . . . . Parts Field Recycled . | . . . . . Retrieved Matter . | . . . . . Parts Self-Destructed . | . . . . . Prevented . | . . . . . Kills | -11 -10 -10 -10 -9 ------- Run | Jun Mat Min Exi Min Combat Hostiles Destroyed 25 | . 12 5 . 8 Guns 15 | . 11 2 . 2 Cannons 5 | . 1 3 . 1 AOE 5 | . . . . 5 Classes Destroyed 10 | 2 5 1 . 2 Builder 1 | . 1 . . . Tunneler 5 | 5 . . . . Hauler 1 | . 1 . . . Recycler 1 | 1 . . . . Operator 1 | . 1 . . . Watcher 2 | . 2 . . . Swarmer 3 | . . 3 . . Grunt 20 | . 12 2 . 6 Brawler 1 | . . . . 1 Protector 1 | . . . . 1 Best Kill Streak 6 | 6 4 3 . 4 Combat Bots Only 4 | . 4 3 . 4 Max Kills in Single Turn 2 | 2 1 1 . 2 Gunslinging . | . . . . . Exploded 2 | . . . . 2 Melee . | . . . . . Uniques/NPCs Destroyed . | . . . . . Combat | -11 -10 -10 -10 -9 -------- Run | Jun Mat Min Exi Min Damage Taken 1239 | . 789 226 . 224 Core 254 | . 149 47 . 58 Absorbed by Shields . | . . . . . Core Remaining (%) 100 | 100 . . . . Volleys Fired 90 | 10 52 15 . 13 Largest 2 | 2 2 2 . 2 Hottest 100 | 60 60 55 . 100 Shots Fired 177 | 20 103 30 . 24 Gun 137 | 20 94 15 . 8 Cannon 33 | . 9 15 . 9 Launcher 7 | . . . . 7 Special . | . . . . . Kinetic 135 | 10 83 30 . 12 Thermal 5 | . . . . 5 Explosive 7 | . . . . 7 Electromagnetic 30 | 10 20 . . . Robot Hit Streak 11 | 4 11 6 . 5 Robot Miss Streak 4 | 2 4 2 . 2 Penetration Max . | . . . . . Secondary Targets . | . . . . . Shots Hit Robots 117 | 12 74 19 . 12 Core Hits 60 | 7 29 6 . 18 Critical Kills . | . . . . . Critical Parts Destroyed . | . . . . . Critical Strikes 1 | . . . . 1 Burn 1 | . . . . 1 Melee Attacks . | . . . . . Impact . | . . . . . Slashing . | . . . . . Piercing . | . . . . . Sneak Attacks . | . . . . . Combat Hostiles . | . . . . . Follow-up Attacks . | . . . . . Damage Inflicted 2309 | 167 1047 335 . 760 Guns 1239 | 167 894 133 . 45 Cannons 440 | . 142 202 . 96 Explosions 619 | . . . . 619 Melee . | . . . . . Ramming 11 | . 11 . . . Kinetic 1351 | 64 844 335 . 108 Thermal 33 | . . . . 33 Explosive 619 | . . . . 619 Electromagnetic 295 | 103 192 . . . Impact . | . . . . . Slashing . | . . . . . Piercing . | . . . . . Highest Corruption . | . . . . . Average Corruption . | . . . . . Corruption Purged . | . . . . . Corruption Blocked . | . . . . . Overload Shots . | . . . . . Overflow Damage 11 | . . 11 . . Projectiles 11 | . . 11 . . Explosions . | . . . . . Melee . | . . . . . Knockbacks 8 | . 1 5 . 2 Impact . | . . . . . Kinetic 7 | . 1 4 . 2 Secondary 1 | . . 1 . . Self-Inflicted Damage 103 | . . . . 103 Shots 5 | . . . . 5 Rammed 1 | . 1 . . . Targets Rammed 2 | . 2 . . . Kicked . | . . . . . Crushed 1 | . 1 . . . Highest Temperature 90 | 15 51 3 . 90 Average Temperature 28 | 10 24 3 . 33 Received Heat Transfer 618 | . 453 96 . 69 Siege Activations . | . . . . . Robots Corrupted . | . . . . . Combat Hostiles . | . . . . . Parts Fried 1 | . 1 . . . Impact Corruptions . | . . . . . Robots Melted . | . . . . . Combat Hostiles . | . . . . . Parts Melted 1 | . . . . 1 Heat Transferred 144 | . . . . 144 Parts Sabotaged . | . . . . . Parts Stolen . | . . . . . Parts Stripped . | . . . . . Power Chain Reactions . | . . . . . Missiles Intercepted . | . . . . . Alert | -11 -10 -10 -10 -9 ------- Run | Jun Mat Min Exi Min Peak Influence 227 | 30 227 70 . 173 Initial 69 | . 19 69 . . Average 62 | 13 69 40 . 119 Maximum Alert Level 1 | . 1 . . . Low Security (%) 97 | 100 93 100 . 100 Level 1 2 | . 6 . . . Level 2 . | . . . . . Level 3 . | . . . . . Level 4 . | . . . . . Level 5 . | . . . . . High Security . | . . . . . Max Security . | . . . . . Squads Dispatched 4 | . 3 . . 1 Investigation 2 | . 2 . . . Extermination . | . . . . . Reinforcement 1 | . 1 . . . Assault 1 | . . . . 1 Garrison . | . . . . . Intercept . | . . . . . Searches Triggered . | . . . . . Construction Impeded . | . . . . . Haulers Reinforced . | . . . . . Active Scanning Responses . | . . . . . Cargo Convoy Interrupts . | . . . . . Stealth | -11 -10 -10 -10 -9 --------- Run | Jun Mat Min Exi Min Distress Signals 2 | . 2 . . . Communications Jammed . | . . . . . Distress Signals . | . . . . . Times Spotted 44 | . 25 5 . 14 Peak Tracking Total 7 | . 7 3 . 5 Tactical Retreats 2 | . 2 . . . Traps | -11 -10 -10 -10 -9 ------- Run | Jun Mat Min Exi Min Traps Triggered . | . . . . . Indirectly . | . . . . . Trap Hack Attempts . | . . . . . Triggered . | . . . . . Disarmed . | . . . . . Reprogrammed . | . . . . . Reused . | . . . . . Traps Extracted . | . . . . . Installed . | . . . . . Triggered . | . . . . . Most Traps Carried 3 | . . 3 3 . Machines | -11 -10 -10 -10 -9 ---------- Run | Jun Mat Min Exi Min Machines Disabled 2 | . 2 . . . Max in Single Turn 1 | . 1 . . . Machines Repaired . | . . . . . Machines Sabotaged . | . . . . . Overloaded Fab Kills . | . . . . . Hacking | -11 -10 -10 -10 -9 --------- Run | Jun Mat Min Exi Min Machines Accessed 11 | . 9 1 1 . Terminals 7 | . 6 1 . . Fabricators . | . . . . . Repair Stations 1 | . 1 . . . Recycling Units 2 | . 2 . . . Scanalyzers . | . . . . . Garrison Access . | . . . . . Total Hacks 33 | . 29 3 1 . Successful 24 | . 22 1 1 . Failed 8 | . 6 2 . . Catastrophic 3 | . 3 . . . Database Lockouts 1 | . 1 . . . Manual 20 | . 17 3 . . Terminals 27 | . 24 3 . . Fabricators . | . . . . . Repair Stations 1 | . 1 . . . Recycling Units 4 | . 4 . . . Scanalyzers . | . . . . . Garrison Access . | . . . . . Terminal Hacks 13 | . 11 1 1 . Record 1 | . . . 1 . Robot Analysis 4 | . 3 1 . . Prototype ID Bank 2 | . 2 . . . Branch Access Points 1 | . 1 . . . Emergency Access Points 1 | . 1 . . . Terminal Index 1 | . 1 . . . Unreport Threat 1 | . 1 . . . Registered Prototypes 1 | . 1 . . . Zone Layout 1 | . 1 . . . Fabricator Hacks . | . . . . . Repair Station Hacks . | . . . . . Recycling Unit Hacks 2 | . 2 . . . Retrieve Components 2 | . 2 . . . Scanalyzer . | . . . . . Garrison Access Hacks . | . . . . . Unauthorized Hacks 9 | . 9 . . . Terminals 6 | . 6 . . . Assimilate 1 | . 1 . . . Botnet 4 | . 4 . . . Operators 1 | . 1 . . . Fabricators . | . . . . . Repair Stations 1 | . 1 . . . Mechanics 1 | . 1 . . . Recycling Units 2 | . 2 . . . Tunnel 2 | . 2 . . . Scanalyzers . | . . . . . Garrison Access . | . . . . . Data Cores Recovered . | . . . . . Used . | . . . . . Hacking Detections 7 | . 6 1 . . Full Trace Events . | . . . . . Feedback Events . | . . . . . Feedback Blocked . | . . . . . Robot Schematics Acquired . | . . . . . Robots Built . | . . . . . Authchips . | . . . . . Time . | . . . . . Total Robot Build Rating . | . . . . . Part Schematics Acquired . | . . . . . Parts Built . | . . . . . Authchips . | . . . . . Time . | . . . . . Total Part Build Rating . | . . . . . Parts Repaired . | . . . . . Time . | . . . . . Parts Recycled . | . . . . . Recycled Matter . | . . . . . Retrieved Matter . | . . . . . Retrieved Components 11 | . 11 . . . Parts Scanalyzed . | . . . . . Part Schematics Acquired . | . . . . . Parts Damaged . | . . . . . Bothacking | -11 -10 -10 -10 -9 ------------ Run | Jun Mat Min Exi Min Used RIF Installer . | . . . . . Robots Hacked . | . . . . . Non-combat . | . . . . . Combat . | . . . . . Robot Hacks Applied . | . . . . . Relay Couplers Released . | . . . . . Fabnet Peak Effective % . | . . . . . Robots Rewired . | . . . . . Allies Hacked . | . . . . . Hacks Repelled . | . . . . . Allies | -11 -10 -10 -10 -9 -------- Run | Jun Mat Min Exi Min Total Allies 1 | . . . . 1 Largest Group 1 | . . . . 1 Highest-Rated Group 31 | . . . . 31 Highest-Rated Ally 31 | . . . . 31 Total Orders . | . . . . . Ally Attacks 2 | . . . . 2 Total Damage 44 | . . . . 44 Kills . | . . . . . Allies Corrupted . | . . . . . Allies Melted . | . . . . . Intel | -11 -10 -10 -10 -9 ------- Run | Jun Mat Min Exi Min Robot Analysis Total 4 | . 3 1 . . Derelict Logs Recovered 1 | . . 1 . . Drone Launches . | . . . . . Drone Recoveries . | . . . . . Exploration | -11 -10 -10 -10 -9 ------------- Run | Jun Mat Min Exi Min Turns Passed 4023 | 108 1533 1474 428 480 Spaces Moved 1560 | 44 586 580 176 174 Core 14 | 14 . . . . Treads 1546 | 30 586 580 176 174 Legs . | . . . . . Wheels . | . . . . . Hover . | . . . . . Flight . | . . . . . Fastest Speed 50 | 50 160 240 240 240 Average Speed 229 | 125 221 240 240 240 Slowest Speed 240 | 160 240 240 240 240 Overloaded Moves . | . . . . . Propulsion Burnouts . | . . . . . Robots Hopped . | . . . . . Cave-ins Triggered . | . . . . . Exploration Rate (%) 53 | 4 91 98 49 24 Regions Visited 4 Branch Regions 3 Pre-discovered Areas 4 | . 2 1 1 . Known Exits Taken 1 | . 1 . . . Unknown Exits Taken 3 | 1 . 1 1 . Scrap Searched 2 | . . 2 . . Spaces Dug . | . . . . . Terrain Destroyed 50 | . . . . 50 Melee . | . . . . . Projectile . | . . . . . AOE 50 | . . . . 50 Terrain Rammed . | . . . . . Walls Destroyed . | . . . . . Machines Disabled . | . . . . . Actions | -11 -10 -10 -10 -9 --------- Run | Jun Mat Min Exi Min Total 1827 | 77 719 635 184 212 Wait 69 | 7 31 25 . 6 Move 1556 | 43 585 579 175 174 Hop . | . . . . . Pick Up 55 | 10 29 8 4 4 Fast Attach . | . . . . . Attach 17 | 7 6 2 . 2 Detach . | . . . . . Swap 17 | . 5 2 1 9 Drop 21 | . 9 4 4 4 Fire 90 | 10 52 15 . 13 Melee . | . . . . . Ram . | . . . . . Kick . | . . . . . Crush 2 | . 2 . . . Escape Stasis . | . . . . . Rewire . | . . . . . Trap . | . . . . . Miscellaneous . | . . . . . Route ------- -11/Junkyard -10/Materials (discovered 4 exits: [*Mat x2] / *Min x2) -10/Mines (discovered 3 exits: [*Mat x2] / *Exi) -10/Exiles -9/Mines (discovered 1 exit: [*Mat]) History --------- Turn | Location | Event 36 | -11/Junkyard | Discovered new exit (range 12) 109 | -11/Junkyard | Entered Materials 117 | -10/Materials | Central database locked down 351 | -10/Materials | Build established: Mutant 426 | -10/Materials | Lost 3 parts (1p2w) 518 | -10/Materials | Identified exit to Mines 664 | -10/Materials | Core integrity fell below 50% 744 | -10/Materials | Discovered new exit (range 16) 1269 | -10/Materials | Discovered new exit (range 3) 1642 | -10/Materials | Entered Mines 1757 | -10/Mines | Found a hidden stash of uninstalled traps 1815 | -10/Mines | Discovered new exit (range 10) 2257 | -10/Mines | Discovered new exit (range 6) 2448 | -10/Mines | Deemed a non-threat by the Exiles lab entrance 2448 | -10/Mines | Discovered new exit (range 5) 2542 | -10/Mines | Learned location of Zion (-7) 3116 | -10/Mines | Entered Exiles 3174 | -10/Exiles | Met 8R-AWN 3282 | -10/Exiles | Met EX-HEX 3373 | -10/Exiles | Met EX-DEC 3515 | -10/Exiles | Discovered new exit (range 14) 3544 | -10/Exiles | Entered Mines 3597 | -9/Mines | Met a Derelict testing a Signal Generator 3619 | -9/Mines | Found Signal Generator 3658 | -9/Mines | Received a Rocket Launcher from a helpful Derelict 3668 | -9/Mines | Core integrity fell below 20% 3730 | -9/Mines | Discovered new exit (range 13) 4024 | -9/Mines | Destroyed self with Grenade Launcher Last Messages --------------- 03684_ K-01 Serf collects debris. 03688_ U-05 Engineer lays Concrete. 03688_ K-01 Serf collects debris. 03690_ U-05 Engineer builds a Wall. 03692_ K-01 Serf collects debris. 03693_ U-05 Engineer lays Concrete. 03694_ U-05 Engineer builds a Wall. 03695_ Acquired Rocket Launcher. 03696_ K-01 Serf collects debris. 03730_ EXIT=FOUND 03739_ Extracted 29 matter. 03799_ Dropped Assault Rifle. 03845_ Dropped Lgt. Treads. 03851_ Acquired Lgt. Treads. 03952_ I-25 Savior knocked back. 03981_ Acquired 1 matter. 03995_ Acquired 2 matter. 03998_ I-25 Savior suffers critical hit (Burn). 03998_ I-25 Savior destroyed. 04001_ Acquired 8 matter. Map ----- +----------------------------------------------------+ | ?????????????????????????????????????????????????? | | ?????????????????????????????????????????????????? | | ?????????????????????????????????????????????????? | | ?????????????????????????????????????????????????? | | ?????????????????????????????????????????????????? | | ?????????????????????????????????????????????????? | | ?????????????????????????????????????????????????? | | ?????????????????????????????????????????????????? | | ?????????????????????????????????????????????????? | | ?????????????????????????????????????????????????? | | ?????????????????????????????????????????????????? | | ?????????????????????????????????????????????????? | | ?????????????????????????????????????????????????? | | ?????????????????????????????????????????????????? | | ?????????????????????????????????????????????????? | | ?????????????????????????????????????????????????? | | ?????????????????????????????????????????????????? | | ????????????????????###??????????????????????????? | | ????????????????????# ???????####???????????????? | | ???????????????????? #??????## #???????????????? | | ????????????????????# #??????# ##???????????????? | | ????????????????????# #?????## ##???????????????? | | ??????????????## ## # ##????# #???????????????? | | ??????????????# gg!###### #???????????????? | | ??????????# ## # ## #???????????????? | | ??????? ?????# l @ ##???????????????? | | ??????? ?????????## # #?#####??????????? | | ????????????????????## ####=! ### ####???????? | | ????????????????????##% % = = ##??????? | | ????????????????????## ####### ##?????? | | ?????????????######### # ## #?????? | | ?????????????# ## ## # #### #?????? | | ????????????## ## ##?#???## ##?????? | | ????????????# ## #???????## ##??????? | | ????????????# ##### #????????# ##???????? | | ????????????# *% #???# #????????## ##????????? | | ????????????# =* #??## #?????????# #?????????? | | ????????????# * # ###?## ##????????# #?????????? | | ????????????#######??## [ #????????# #?????????? | | ?????????????????????# #??????### #?????????? | | ?????????????????????# #????### #?????????? | | ?????????????????????## #???## #?????????? | | ??????????????????????## ##???# ##?????????? | | ???????????????????????####????# #######????? | | ???????????????????????????????## [ ##???? | | ????????????????????????????????## ! ! ##### | | ?????????????????????????????????# !!!! | | ?????????????????????????????????## # !!!! | | ??????????????????????????????????#### ! !! < | | ?????????????????????????????????????# | +----------------------------------------------------+ Best States ------------- Heat Dissipation 35 Energy Generation 14 Energy Capacity 250 Matter Stores 300 Matter Capacity 300 Sight Range 18 Terrain Scan Range 16 Terrain Scan Density 10 Evasion (%) 50 Recoil Reduction 2 Item Schematics ----------------- None Robot Schematics ------------------ None Fabricated ------------ Nothing Alien Tech Used ----------------- None Achievements -------------- None Challenges ------------ None Game ------ Seed AlloyTerrainWheel Manual? 0 Play Time 00:22:39 Cumulative 157.4 hours Start 2024.01.01 @ 13:12:10 End 2024.01.01 @ 13:53:45 Sessions 4 Manual Loads 0 Difficulty Rogue Special Mode None Game No. 142 Rogue 142 Adventurer 0 Explorer 0 Win Type - Total 1 Types 1/0/0/0/0/0/0/0/0 Lore% 55 Gallery% 66 Achievement% 53 Wizard Run 0 Options --------- ASCII 0 Keyboard 0 Movement Numpad Keybinds 0 Fullscreen 2 Font 18/Smallcaps Map View 76x50 Tactical HUD 1 Map Filters NONE Filters NONE Steam 1 RUN: a65529bb-68bc-4488-b69c-888c72e85e6a